{"text_format":"3","workbook":"xlsx","n_sheets":2,"sheets":["Despesas","Categoria"],"not_rendered":{"defined_names":5},"read":"whole","date_system":"1900"}

{"sheet":"Despesas","index":0,"n_rows":25,"n_cols":7,"rows_kept":25,"merged":[[0,1,0,5],[1,1,1,6]]}
[null,"ORÇAMENTO DE DESPESAS",{"$nulls":4},{"$f":"TODAY()","v":{"v":43284,"d":"4328400.00%"}}]
[null,"Nome da Empresa"]
[null,"Despesa","Categoria","Orçamento","Real","Diferença (€)","Diferença (%)"]
[null,"Publicidade","Operações",null,null,{"$f":"IFERROR(SUM(Despesas[Orçamento]-Despesas[Real]), \"\")","v":0},{"$f":"IFERROR(SUM(Despesas[Diferença (€)]/Despesas[Orçamento]),\"\")","v":""}]
[null,"Dívidas","Operações",null,null,{"$f":"IFERROR(SUM(Despesas[Orçamento]-Despesas[Real]), \"\")","v":0},{"$f":"IFERROR(SUM(Despesas[Diferença (€)]/Despesas[Orçamento]),\"\")","v":""}]
[null,"Benefícios","Operações",null,null,{"$f":"IFERROR(SUM(Despesas[Orçamento]-Despesas[Real]), \"\")","v":0},{"$f":"IFERROR(SUM(Despesas[Diferença (€)]/Despesas[Orçamento]),\"\")","v":""}]
[null,"Consumíveis","Operações",null,null,{"$f":"IFERROR(SUM(Despesas[Orçamento]-Despesas[Real]), \"\")","v":0},{"$f":"IFERROR(SUM(Despesas[Diferença (€)]/Despesas[Orçamento]),\"\")","v":""}]
[null,"Correio","Operações",null,null,{"$f":"IFERROR(SUM(Despesas[Orçamento]-Despesas[Real]), \"\")","v":0},{"$f":"IFERROR(SUM(Despesas[Diferença (€)]/Despesas[Orçamento]),\"\")","v":""}]
[null,"Renda ou hipoteca","Operações",null,null,{"$f":"IFERROR(SUM(Despesas[Orçamento]-Despesas[Real]), \"\")","v":0},{"$f":"IFERROR(SUM(Despesas[Diferença (€)]/Despesas[Orçamento]),\"\")","v":""}]
[null,"Despesas de vendas","Operações",null,null,{"$f":"IFERROR(SUM(Despesas[Orçamento]-Despesas[Real]), \"\")","v":0},{"$f":"IFERROR(SUM(Despesas[Diferença (€)]/Despesas[Orçamento]),\"\")","v":""}]
[null,"Impostos","Operações",null,null,{"$f":"IFERROR(SUM(Despesas[Orçamento]-Despesas[Real]), \"\")","v":0},{"$f":"IFERROR(SUM(Despesas[Diferença (€)]/Despesas[Orçamento]),\"\")","v":""}]
[null,"Serviços públicos","Operações",null,null,{"$f":"IFERROR(SUM(Despesas[Orçamento]-Despesas[Real]), \"\")","v":0},{"$f":"IFERROR(SUM(Despesas[Diferença (€)]/Despesas[Orçamento]),\"\")","v":""}]
[null,"Outro","Operações",null,null,{"$f":"IFERROR(SUM(Despesas[Orçamento]-Despesas[Real]), \"\")","v":0},{"$f":"IFERROR(SUM(Despesas[Diferença (€)]/Despesas[Orçamento]),\"\")","v":""}]
[null,"Seguros","Operações",null,null,{"$f":"IFERROR(SUM(Despesas[Orçamento]-Despesas[Real]), \"\")","v":0},{"$f":"IFERROR(SUM(Despesas[Diferença (€)]/Despesas[Orçamento]),\"\")","v":""}]
[null,"Juros","Operações",null,null,{"$f":"IFERROR(SUM(Despesas[Orçamento]-Despesas[Real]), \"\")","v":0},{"$f":"IFERROR(SUM(Despesas[Diferença (€)]/Despesas[Orçamento]),\"\")","v":""}]
[null,"Telefone","Operações",null,null,{"$f":"IFERROR(SUM(Despesas[Orçamento]-Despesas[Real]), \"\")","v":0},{"$f":"IFERROR(SUM(Despesas[Diferença (€)]/Despesas[Orçamento]),\"\")","v":""}]
[null,"Manutenção e reparações","Operações",null,null,{"$f":"IFERROR(SUM(Despesas[Orçamento]-Despesas[Real]), \"\")","v":0},{"$f":"IFERROR(SUM(Despesas[Diferença (€)]/Despesas[Orçamento]),\"\")","v":""}]
[null,"Despesas legais","Operações",null,null,{"$f":"IFERROR(SUM(Despesas[Orçamento]-Despesas[Real]), \"\")","v":0},{"$f":"IFERROR(SUM(Despesas[Diferença (€)]/Despesas[Orçamento]),\"\")","v":""}]
[null,"Depreciação","Operações",null,null,{"$f":"IFERROR(SUM(Despesas[Orçamento]-Despesas[Real]), \"\")","v":0},{"$f":"IFERROR(SUM(Despesas[Diferença (€)]/Despesas[Orçamento]),\"\")","v":""}]
[null,"Envio","Operações",null,null,{"$f":"IFERROR(SUM(Despesas[Orçamento]-Despesas[Real]), \"\")","v":0},{"$f":"IFERROR(SUM(Despesas[Diferença (€)]/Despesas[Orçamento]),\"\")","v":""}]
[null,"Armazenamento","Operações",null,null,{"$f":"IFERROR(SUM(Despesas[Orçamento]-Despesas[Real]), \"\")","v":0},{"$f":"IFERROR(SUM(Despesas[Diferença (€)]/Despesas[Orçamento]),\"\")","v":""}]
[null,"Loja","Pessoal",null,null,{"$f":"IFERROR(SUM(Despesas[Orçamento]-Despesas[Real]), \"\")","v":0},{"$f":"IFERROR(SUM(Despesas[Diferença (€)]/Despesas[Orçamento]),\"\")","v":""}]
[null,"Vendedores","Pessoal",null,null,{"$f":"IFERROR(SUM(Despesas[Orçamento]-Despesas[Real]), \"\")","v":0},{"$f":"IFERROR(SUM(Despesas[Diferença (€)]/Despesas[Orçamento]),\"\")","v":""}]
[null,"Outros","Pessoal",null,null,{"$f":"IFERROR(SUM(Despesas[Orçamento]-Despesas[Real]), \"\")","v":0},{"$f":"IFERROR(SUM(Despesas[Diferença (€)]/Despesas[Orçamento]),\"\")","v":""}]
[null,"Despesas Totais",null,{"$f":"IFERROR(SUM(Despesas[Orçamento]), \"\")","v":0},{"$f":"IFERROR(SUM(Despesas[Real]), \"\")","v":0},{"$f":"IFERROR(SUM(Despesas[Diferença (€)]), \"\")","v":0},{"$f":"IFERROR(SUM(Despesas[[#Totals],[Diferença (€)]]/Despesas[[#Totals],[Orçamento]]),\"\")","v":""}]

{"sheet":"Categoria","index":1,"n_rows":4,"n_cols":2,"rows_kept":4}
[null,"Pesquisa de Categoria"]
[null,"Categoria"]
[null,"Operações"]
[null,"Pessoal"]